fUST/lending_fUST_20260115
["ID","MTS","AMOUNT","RATE_DAILY","PERIOD"]
[401997727,1768453840726,-427.21115,0.00021918,2]
[401997729,1768453840736,-427.21115,0.00021918,2]
[401997731,1768453840745,-427.21115,0.00021918,2]
[401997733,1768453840755,-427.21115,0.00021918,2]
[401997735,1768453840763,-151.0,0.00021918,2]
[401997737,1768453840773,-151.0,0.00021918,2]
[401997739,1768453840781,-151.0,0.00021918,2]
[401997741,1768453840790,-252.547124,0.00021918,2]
[401997743,1768453840799,-165.324728,0.00021918,2]
[401997745,1768453840808,-165.324728,0.00021918,2]
[401997747,1768453840817,-165.324728,0.00021918,2]
[401997749,1768453840826,-165.324728,0.00021918,2]
[401997751,1768453840835,-151.0,0.00021918,2]
[401997753,1768453840845,-151.0,0.00021918,2]
[401997755,1768453840854,-281.005551,0.00021918,2]
[401997757,1768453840862,-295.806985,0.00021918,2]
[401997759,1768453840871,-295.806985,0.00021918,2]
[401997761,1768453840880,-295.806985,0.00021918,2]
[401997763,1768453840889,-295.806985,0.00021918,2]
[401997765,1768453840898,-224.150366,0.00021918,2]
[401997767,1768453840907,-154.438873,0.00021918,2]
[401997769,1768453840916,-151.0,0.00021918,2]
[401997788,1768453841060,-389.489809,0.00021918,2]
[401997792,1768453841106,-389.489809,0.00021918,2]
[401997794,1768453841116,-151.0,0.00021918,2]
[401997796,1768453841125,-151.0,0.00021918,2]
[401997798,1768453841134,-151.0,0.00021918,2]
[401997800,1768453841143,-163.530379,0.00021918,2]
[401997802,1768453841153,-210.355603,0.00021918,2]
[401997804,1768453841162,-151.0,0.00021918,2]
[401997806,1768453841171,-151.0,0.00021918,2]
[401997808,1768453841180,-152.929752,0.00021918,2]
[401997810,1768453841189,-203.801763,0.00021918,2]
[401997812,1768453841198,-5000.0,0.00022,2]
[401997814,1768453841207,-5000.0,0.00022,2]
[401997816,1768453841216,-18716.0,0.00022,2]
[401997818,1768453841225,-2062.93,0.00022,7]
[401997820,1768453841235,-190.675,0.00022,2]
[401997822,1768453841243,-403.17202506,0.00022092,2]
[401997824,1768453841253,-275.71421571,0.0002216,2]
[401997826,1768453841262,-442.56744364,0.00022162,2]
[401997828,1768453841271,-1770.26977457,0.00022162,2]
[401997830,1768453841281,-3979.1238858,0.00022162,2]
[401997832,1768453841290,-608.11414846,0.00022162,2]
[401997834,1768453841299,-2432.45659384,0.00022162,2]
[401997836,1768453841308,-488.88796601,0.00022162,2]
[401997838,1768453841317,-180.22889069,0.00022199,2]
[401997840,1768453841326,-3000.0,0.00022252,7]
[401997842,1768453841336,-669.0,0.000223,2]
[401997844,1768453841345,-3843.5461621,0.000224,2]
[401997846,1768453841355,-300.0,0.00022466,2]
[401997848,1768453841363,-261.09071122,0.00022466,2]
[401997850,1768453841373,-5467.5543088,0.00022487,2]
[401997852,1768453841381,-160.09,0.000225,7]
[401997854,1768453841390,-381.9,0.00022532,2]
[401997856,1768453841400,-172.0,0.00022548,7]
[401997858,1768453841409,-2559.22537587,0.00022572,10]
[401997860,1768453841417,-2398.91,0.000226,14]
[401997862,1768453841426,-200.0,0.00022603,10]
[401997864,1768453841435,-24793.98460012,0.00022622,2]
[401997866,1768453841444,-427.21115,0.00022622,2]
[401997868,1768453841453,-427.21115,0.00022622,2]
[401997870,1768453841462,-427.21115,0.00022622,2]
[401997872,1768453841471,-427.21115,0.00022622,2]
[401997874,1768453841480,-151.0,0.00022622,2]
[401997876,1768453841488,-151.0,0.00022622,2]
[401997877,1768453841497,-151.0,0.00022622,2]
[401997880,1768453841508,-165.324728,0.00022622,2]
[401997882,1768453841518,-165.324728,0.00022622,2]
[401997884,1768453841528,-165.324728,0.00022622,2]
[401997886,1768453841537,-165.324728,0.00022622,2]
[401997888,1768453841546,-151.0,0.00022622,2]
[401997890,1768453841558,-151.0,0.00022622,2]
[401997892,1768453841568,-151.0,0.00022622,2]
[401997893,1768453841578,-151.0,0.00022622,2]
[401997895,1768453841598,-151.0,0.00022622,2]
[401997897,1768453841616,-295.806985,0.00022622,2]
[401997899,1768453841626,-295.806985,0.00022622,2]
[401997901,1768453841635,-295.806985,0.00022622,2]
[401997903,1768453841645,-295.806985,0.00022622,2]
[401997905,1768453841655,-151.0,0.00022622,2]
[401997907,1768453841668,-389.489809,0.00022622,2]
[401997909,1768453841687,-389.489809,0.00022622,2]
[401997912,1768453841707,-151.0,0.00022622,2]
[401997913,1768453841725,-637.717609,0.00022622,2]
[401997915,1768453841738,-151.0,0.00022622,2]
[401997917,1768453841749,-151.0,0.00022622,2]
[401997919,1768453841761,-637.717609,0.00022622,2]
[401997922,1768453841771,-637.717609,0.00022622,2]
[401997924,1768453841783,-637.717609,0.00022622,2]
[401997925,1768453841793,-275.55471384,0.00022622,2]
[401997927,1768453841804,-151.0,0.00022622,2]
[401997929,1768453841814,-151.0,0.00022622,2]
[401997931,1768453841824,-151.0,0.00022622,2]
[401997933,1768453841833,-151.0,0.00022622,2]
[401997935,1768453841844,-194.573402,0.00022622,2]
[401997937,1768453841853,-194.573402,0.00022622,2]
[401997939,1768453841863,-194.573402,0.00022622,2]
[401997941,1768453841872,-194.573402,0.00022622,2]
[401997943,1768453841888,-151.0,0.00022622,2]
[401997945,1768453841908,-151.0,0.00022622,2]
[401997947,1768453841926,-466.939068,0.00022622,2]
[401997949,1768453841937,-466.939068,0.00022622,2]
[401997951,1768453841949,-213.542319,0.00022622,2]
[401997953,1768453841959,-151.0,0.00022622,2]
[401997955,1768453841971,-466.939068,0.00022622,2]
[401997957,1768453841983,-213.542319,0.00022622,2]
[401997959,1768453841993,-466.939068,0.00022622,2]
[401997961,1768453842003,-213.542319,0.00022622,2]
[401997963,1768453842014,-213.542319,0.00022622,2]
[401997965,1768453842026,-151.320757,0.00022622,2]
[401997967,1768453842037,-151.0,0.00022622,2]
[401997969,1768453842047,-228.613704,0.00022622,2]
[401997971,1768453842056,-288.58596,0.00022622,2]
[401997973,1768453842067,-151.0,0.00022622,2]
[401997975,1768453842078,-151.0,0.00022622,2]
[401997977,1768453842089,-165.855245,0.00022622,2]
[401997979,1768453842098,-165.855245,0.00022622,2]
[401997981,1768453842108,-165.855245,0.00022622,2]
[401997983,1768453842119,-165.855245,0.00022622,2]
[401997985,1768453842128,-151.0,0.00022622,2]
[401997987,1768453842138,-1201.527246,0.00022622,2]
[401997989,1768453842148,-1201.527246,0.00022622,2]
[401997991,1768453842159,-151.0,0.00022622,2]
[401997993,1768453842170,-1201.527246,0.00022622,2]
[401997995,1768453842181,-1201.527246,0.00022622,2]
[401997997,1768453842191,-151.0,0.00022622,2]
[401997999,1768453842201,-285.005968,0.00022622,2]
[401998001,1768453842214,-285.005968,0.00022622,2]
[401998003,1768453842224,-285.005968,0.00022622,2]
[401998005,1768453842233,-157.21855,0.00022622,2]
[401998007,1768453842243,-285.005968,0.00022622,2]
[401998009,1768453842253,-245.169299,0.00022622,2]
[401998011,1768453842262,-151.0,0.00022622,2]
[401998013,1768453842274,-23954.1935263,0.00022683,2]
[401998015,1768453842283,-151.0,0.00022683,2]
[401998017,1768453842292,-151.0,0.00022683,2]
[401998019,1768453842302,-151.0,0.00022683,2]
[401998020,1768453842312,-151.0,0.00022683,2]
[401998021,1768453842321,-151.0,0.00022683,2]
[401998022,1768453842330,-151.0,0.00022683,2]
[401998023,1768453842340,-151.0,0.00022683,2]
[401998024,1768453842351,-155.346207,0.00022683,2]
[401998025,1768453842362,-240.230287,0.00022683,2]
[401998026,1768453842372,-151.0,0.00022683,2]
[401998027,1768453842381,-151.0,0.00022683,2]
[401998028,1768453842390,-151.0,0.00022683,2]
[401998029,1768453842401,-151.0,0.00022683,2]
[401998030,1768453842411,-854.849197,0.00022683,2]
[401998031,1768453842420,-854.849197,0.00022683,2]
[401998032,1768453842429,-854.849197,0.00022683,2]
[401998033,1768453842438,-854.849197,0.00022683,2]
[401998034,1768453842447,-151.0,0.00022683,2]
[401998035,1768453842456,-154.245754,0.00022683,2]
[401998036,1768453842465,-154.245754,0.00022683,2]
[401998037,1768453842475,-154.245754,0.00022683,2]
[401998038,1768453842483,-154.245754,0.00022683,2]
[401998040,1768453842492,-506.39573377,0.0002269,2]
[401998042,1768453842501,-358.47727814,0.0002269,2]
[401998044,1768453842515,-10000.0,0.00022693,2]
[401998046,1768453842523,-156.82,0.000227,7]
[401998048,1768453842533,-15101.38,0.000227,2]
[401998050,1768453842542,-309.165995,0.000227,2]
[401998052,1768453842551,-309.165995,0.000227,2]
[401998054,1768453842560,-309.165995,0.000227,2]
[401998056,1768453842569,-309.165995,0.000227,2]
[401998058,1768453842579,-151.0,0.000227,2]
[401998060,1768453842588,-172.590058,0.000227,30]
[401998062,1768453842597,-160.0,0.00022776,3]
[401998065,1768453842606,-151.0,0.00022793,2]
[401998067,1768453842615,-155.18198644,0.00022793,3]
[401998069,1768453842624,-348.0,0.00022793,3]
[401998071,1768453842633,-348.0,0.00022793,3]
[401998073,1768453842642,-348.0,0.00022793,3]
[401998075,1768453842651,-348.0,0.00022793,3]
[401998077,1768453842660,-348.0,0.00022793,3]
[401998079,1768453842668,-337.0,0.00022793,3]
[401998081,1768453842677,-166.0,0.00022793,3]
[401998083,1768453842686,-151.0,0.00022793,3]
[401998085,1768453842695,-348.0,0.00022793,3]
[401998087,1768453842704,-166.0,0.00022793,3]
[401998089,1768453842713,-337.0,0.00022793,3]
[401998091,1768453842723,-151.0,0.00022793,3]
[401998093,1768453842732,-348.0,0.00022793,3]
[401998095,1768453842741,-166.0,0.00022793,3]
[401998097,1768453842750,-337.0,0.00022793,3]
[401998099,1768453842759,-151.0,0.00022793,3]
[401998101,1768453842768,-348.0,0.00022793,3]
[401998103,1768453842777,-166.0,0.00022793,3]
[401998104,1768453842786,-337.0,0.00022793,3]
[401998106,1768453842795,-151.0,0.00022793,3]
[401998109,1768453842804,-348.0,0.00022793,3]
[401998110,1768453842813,-166.0,0.00022793,3]
[401998114,1768453842823,-337.0,0.00022793,3]
[401998116,1768453842831,-151.0,0.00022793,3]
[401998119,1768453842841,-348.0,0.00022793,3]
[401998121,1768453842849,-166.0,0.00022793,3]
[401998123,1768453842858,-337.0,0.00022793,3]
[401998125,1768453842868,-151.0,0.00022793,3]
[401998127,1768453842878,-166.0,0.00022793,3]
[401998130,1768453842887,-348.0,0.00022793,3]
[401998131,1768453842896,-337.0,0.00022793,3]
[401998133,1768453842905,-151.0,0.00022793,3]
[401998136,1768453842914,-172.0,0.00022793,3]
[401998137,1768453842923,-348.0,0.00022793,3]
[401998139,1768453842932,-337.0,0.00022793,3]
[401998141,1768453842941,-151.0,0.00022793,3]
[401998144,1768453842951,-348.0,0.00022793,3]
[401998146,1768453842960,-337.0,0.00022793,3]
[401998147,1768453842969,-151.0,0.00022793,3]
[401998149,1768453842979,-348.0,0.00022793,3]
[401998151,1768453842988,-337.0,0.00022793,3]
[401998153,1768453842997,-151.0,0.00022793,3]
[401998155,1768453843006,-348.0,0.00022793,3]
[401998157,1768453843015,-151.0,0.00022793,3]
[401998159,1768453843025,-337.0,0.00022793,3]
[401998161,1768453843034,-151.0,0.00022793,3]
[401998164,1768453843043,-337.0,0.00022793,3]
[401998166,1768453843052,-348.0,0.00022793,3]
[401998168,1768453843062,-348.0,0.00022793,3]
[401998170,1768453843071,-337.0,0.00022793,3]
[401998171,1768453843081,-337.0,0.00022793,3]
[401998173,1768453843090,-348.0,0.00022793,3]
[401998176,1768453843099,-151.0,0.00022793,3]
[401998177,1768453843109,-337.0,0.00022793,3]
[401998179,1768453843118,-348.0,0.00022793,3]
[401998181,1768453843127,-337.0,0.00022793,3]
[401998184,1768453843137,-151.0,0.00022793,3]
[401998186,1768453843146,-348.0,0.00022793,3]
[401998188,1768453843155,-337.0,0.00022793,3]
[401998190,1768453843164,-151.0,0.00022793,3]
[401998192,1768453843173,-348.0,0.00022793,3]
[401998194,1768453843183,-337.0,0.00022793,3]
[401998196,1768453843192,-348.0,0.00022793,3]
[401998198,1768453843201,-151.0,0.00022793,3]
[401998200,1768453843210,-337.0,0.00022793,3]
[401998202,1768453843220,-348.0,0.00022793,3]
[401998204,1768453843229,-151.0,0.00022793,3]
[401998206,1768453843239,-337.0,0.00022793,3]
[401998208,1768453843248,-348.0,0.00022793,3]
[401998210,1768453843258,-151.0,0.00022793,3]
[401998212,1768453843267,-337.0,0.00022793,3]
[401998214,1768453843276,-151.0,0.00022793,3]
[401998216,1768453843285,-348.0,0.00022793,3]
[401998218,1768453843294,-337.0,0.00022793,3]
[401998220,1768453843303,-151.0,0.00022793,3]
[401998222,1768453843313,-348.0,0.00022793,3]
[401998224,1768453843322,-337.0,0.00022793,3]
[401998226,1768453843331,-216.74554347,0.00022793,3]
[401998228,1768453843340,-348.0,0.00022793,3]
[401998230,1768453843350,-337.0,0.00022793,3]
[401998232,1768453843359,-337.0,0.00022793,3]
[401998234,1768453843368,-348.0,0.00022793,3]
[401998237,1768453843377,-348.0,0.00022793,3]
[401998240,1768453843386,-337.0,0.00022793,3]
[401998243,1768453843395,-348.0,0.00022793,3]
[401998246,1768453843404,-337.0,0.00022793,3]
[401998248,1768453843413,-348.0,0.00022793,3]
[401998250,1768453843422,-348.0,0.00022793,3]
[401998252,1768453843430,-337.0,0.00022793,3]
[401998254,1768453843439,-315.0,0.00022793,3]
[401998256,1768453843448,-337.0,0.00022793,3]
[401998258,1768453843457,-444.6729949,0.00022793,3]
[401998260,1768453843466,-167.85,0.000228,7]
[401998262,1768453843476,-3000.0,0.000228,2]
[401998264,1768453843485,-250.0,0.000228,10]
[401998266,1768453843494,-240729.17238217,0.000228,2]
[401998268,1768453843503,-151.0,0.000228,2]
[401998270,1768453843516,-505.89551628,0.000228,8]
[401998272,1768453843524,-500.0,0.000228,8]
[401998273,1768453843535,-3000.0,0.0002281,2]
[401998276,1768453843544,-151.0,0.0002281,2]
[401998278,1768453843554,-151.0,0.0002281,2]
[401998279,1768453843564,-3000.0,0.0002282,2]
[401998281,1768453843573,-358.47727814,0.00022826,9]
[401998283,1768453843584,-506.39573377,0.00022826,9]
[401998286,1768453843594,-3000.0,0.0002283,2]
[401998287,1768453843603,-3000.0,0.0002284,2]
[401998289,1768453843612,-3183.36431193,0.0002284,2]
[401998291,1768453843621,-328.20661034,0.00022846,2]
[401998293,1768453843630,-164.10330515,0.00022846,2]
[401998295,1768453843639,-1330.38762188,0.00022847,2]
[401998297,1768453843648,-3000.0,0.0002285,2]
[401998299,1768453843657,-1701.0,0.00022858,2]
[401998301,1768453843667,-3000.0,0.0002286,2]
[401998303,1768453843675,-3000.0,0.0002287,2]
[401998305,1768453843684,-3000.0,0.0002288,2]
[401998307,1768453843693,-1330.38762188,0.00022886,4]
[401998309,1768453843702,-3000.0,0.0002289,2]
[401998311,1768453843711,-3000.0,0.000229,2]
[401998313,1768453843722,-2062.93,0.000229,7]
[401998316,1768453843732,-250.0,0.000229,10]
[401998318,1768453843742,-3000.0,0.0002291,2]
[401998320,1768453843751,-3000.0,0.0002292,2]
[401998321,1768453843760,-1330.38762188,0.00022925,6]
[401998324,1768453843769,-3000.0,0.0002293,2]
[401998326,1768453843779,-3000.0,0.0002294,2]
[401998327,1768453843788,-3000.0,0.0002295,2]
[401998329,1768453843797,-3000.0,0.0002296,2]
[401998331,1768453843807,-506.39573377,0.00022963,17]
[401998333,1768453843815,-358.47727814,0.00022963,17]
[401998336,1768453843824,-1330.38762188,0.00022964,8]
[401998337,1768453843833,-3000.0,0.0002297,2]
[401998339,1768453843843,-3000.0,0.0002298,2]
[401998341,1768453843851,-328.20661034,0.00022984,9]
[401998343,1768453843860,-3000.0,0.0002299,2]
[401998345,1768453843869,-200.0,0.00023,4]
[401998347,1768453843878,-3000.0,0.00023,2]
[401998349,1768453843888,-1041.66666667,0.00023,3]
[401998351,1768453843897,-250.0,0.00023,10]
[401998354,1768453843906,-205.3681177,0.00023,2]
[401998355,1768453843916,-1330.38762188,0.00023004,10]
[401998357,1768453843925,-3000.0,0.0002301,2]
[401998360,1768453843935,-450.0,0.00023014,2]
[401998361,1768453843944,-3000.0,0.0002302,2]
[401998363,1768453843953,-3000.0,0.0002303,2]
[401998365,1768453843962,-3000.0,0.0002304,2]
[401998367,1768453843972,-295.806985,0.0002304,2]
[401998369,1768453843981,-295.806985,0.0002304,2]
[401998371,1768453843990,-295.806985,0.0002304,2]
[401998373,1768453843999,-295.806985,0.0002304,2]
[401998375,1768453844009,-171.183927,0.0002304,2]
[401998377,1768453844018,-389.489809,0.0002304,2]
[401998379,1768453844028,-389.489809,0.0002304,2]
[401998381,1768453844038,-151.0,0.0002304,2]
[401998384,1768453844047,-637.717609,0.0002304,2]
[401998385,1768453844056,-151.0,0.0002304,2]
[401998387,1768453844066,-151.0,0.0002304,2]
[401998389,1768453844075,-637.717609,0.0002304,2]
[401998391,1768453844084,-637.717609,0.0002304,2]
[401998393,1768453844093,-637.717609,0.0002304,2]
[401998395,1768453844103,-151.0,0.0002304,2]
[401998397,1768453844112,-151.0,0.0002304,2]
[401998399,1768453844121,-151.0,0.0002304,2]
[401998401,1768453844131,-151.0,0.0002304,2]
[401998404,1768453844140,-194.573402,0.0002304,2]
[401998406,1768453844150,-194.573402,0.0002304,2]
[401998408,1768453844159,-194.573402,0.0002304,2]
[401998409,1768453844169,-194.573402,0.0002304,2]
[401998412,1768453844178,-155.501798,0.0002304,2]
[401998413,1768453844187,-151.0,0.0002304,2]
[401998415,1768453844196,-466.939068,0.0002304,2]
[401998418,1768453844206,-466.939068,0.0002304,2]
[401998420,1768453844215,-213.542319,0.0002304,2]
[401998422,1768453844224,-151.0,0.0002304,2]
[401998424,1768453844233,-466.939068,0.0002304,2]
[401998426,1768453844242,-213.542319,0.0002304,2]
[401998427,1768453844251,-466.939068,0.0002304,2]
[401998429,1768453844261,-213.542319,0.0002304,2]
[401998431,1768453844271,-213.542319,0.0002304,2]
[401998433,1768453844282,-151.0,0.0002304,2]
[401998435,1768453844291,-151.0,0.0002304,2]
[401998437,1768453844300,-151.0,0.0002304,2]
[401998439,1768453844309,-165.855245,0.0002304,2]
[401998441,1768453844319,-165.855245,0.0002304,2]
[401998443,1768453844328,-165.855245,0.0002304,2]
[401998445,1768453844338,-165.855245,0.0002304,2]
[401998447,1768453844347,-151.0,0.0002304,2]
[401998449,1768453844356,-1201.527246,0.0002304,2]
[401998451,1768453844365,-1201.527246,0.0002304,2]
[401998453,1768453844374,-152.158812,0.0002304,2]
[401998455,1768453844384,-1201.527246,0.0002304,2]
[401998457,1768453844393,-1201.527246,0.0002304,2]
[401998459,1768453844403,-178.114767,0.0002304,2]
[401998461,1768453844413,-285.005968,0.0002304,2]
[401998463,1768453844421,-285.005968,0.0002304,2]
[401998465,1768453844431,-285.005968,0.0002304,2]
[401998467,1768453844440,-285.005968,0.0002304,2]
[401998469,1768453844449,-1330.38762188,0.00023043,13]
[401998471,1768453844458,-3000.0,0.0002305,2]
[401998473,1768453844468,-427.21115,0.0002305,2]
[401998475,1768453844477,-427.21115,0.0002305,2]
[401998477,1768453844486,-427.21115,0.0002305,2]
[401998479,1768453844495,-427.21115,0.0002305,2]
[401998481,1768453844506,-151.0,0.0002305,2]
[401998483,1768453844518,-151.0,0.0002305,2]
[401998485,1768453844527,-151.0,0.0002305,2]
[401998487,1768453844537,-165.324728,0.0002305,2]
[401998489,1768453844546,-165.324728,0.0002305,2]
[401998492,1768453844557,-165.324728,0.0002305,2]
[401998494,1768453844566,-165.324728,0.0002305,2]
[401998495,1768453844575,-151.0,0.0002305,2]
[401998497,1768453844585,-151.0,0.0002305,2]
[401998499,1768453844594,-151.0,0.0002305,2]
[401998502,1768453844604,-151.0,0.0002305,2]
[401998503,1768453844613,-151.0,0.0002305,2]
[401998505,1768453844622,-3000.0,0.0002306,2]
[401998508,1768453844632,-3000.0,0.0002307,2]
[401998509,1768453844641,-3000.0,0.0002308,2]
[401998512,1768453844650,-1330.38762188,0.00023082,15]
[401998514,1768453844660,-4920.781507,0.0002309,2]
[401998516,1768453844669,-506.39573377,0.00023099,25]
[401998518,1768453844678,-358.47727814,0.00023099,25]
[401998520,1768453844688,-250.0,0.000231,10]
[401998522,1768453844697,-1701.0,0.00023102,2]
[401998523,1768453844706,-328.20661034,0.00023121,17]
[401998525,1768453844716,-1330.38762188,0.00023121,17]
[401998528,1768453844725,-800.0,0.00023148,2]
[401998530,1768453844734,-151.0,0.00023158,2]
[401998532,1768453844744,-151.0,0.00023158,2]
[401998533,1768453844754,-151.0,0.00023158,2]
[401998535,1768453844763,-151.0,0.00023158,2]
[401998537,1768453844772,-854.849197,0.00023158,2]
[401998539,1768453844782,-854.849197,0.00023158,2]
[401998541,1768453844791,-854.849197,0.00023158,2]
[401998543,1768453844801,-854.849197,0.00023158,2]
[401998546,1768453844810,-151.0,0.00023158,2]
[401998548,1768453844819,-154.245754,0.00023158,2]
[401998549,1768453844829,-154.245754,0.00023158,2]
[401998551,1768453844838,-154.245754,0.00023158,2]
[401998553,1768453844848,-154.245754,0.00023158,2]
[401998554,1768453844857,-1330.38762188,0.00023161,19]
[401998555,1768453844866,-2200.0,0.00023161,2]
[401998556,1768453844876,-800.0,0.00023162,2]
[401998557,1768453844885,-800.0,0.00023176,2]
[401998558,1768453844895,-258.9860714,0.00023191,2]
[401998559,1768453844905,-800.0,0.00023198,2]
[401998560,1768453844914,-1330.38762188,0.000232,21]
[401998561,1768453844924,-151.0,0.000232,2]
[401998562,1768453844933,-151.0,0.000232,2]
[401998563,1768453844943,-151.0,0.000232,2]
[401998564,1768453844952,-250.0,0.000232,10]
[401998565,1768453844961,-800.0,0.000232,2]
[401998579,1768453845105,-800.0,0.00023208,2]
[401998582,1768453845138,-800.0,0.00023226,2]
[401998584,1768453845148,-800.0,0.00023231,2]
[401998586,1768453845157,-156.003807,0.00023232,2]
[401998588,1768453845167,-151.0,0.00023232,2]
[401998590,1768453845176,-272.502318,0.00023232,2]
[401998592,1768453845186,-151.0,0.00023232,2]
[401998594,1768453845195,-1701.0,0.00023234,2]
[401998596,1768453845204,-506.39573377,0.00023236,32]
[401998598,1768453845213,-358.47727814,0.00023236,32]
[401998600,1768453845223,-1330.38762188,0.00023239,24]
[401998602,1768453845233,-201.93286099,0.0002324,2]
[401998604,1768453845242,-160.0,0.00023253,4]
[401998606,1768453845251,-2200.0,0.00023254,2]
[401998608,1768453845261,-328.20661034,0.00023259,25]
[401998610,1768453845270,-1330.38762188,0.00023278,26]
[401998612,1768453845279,-800.0,0.00023282,2]
[401998614,1768453845288,-500.0,0.00023283,2]
[401998616,1768453845297,-250.0,0.000233,10]
[401998618,1768453845307,-1330.38762188,0.00023318,28]
[401998620,1768453845315,-900.0,0.00023328,2]
[401998622,1768453845324,-3000.0,0.00023348,7]
[401998624,1768453845334,-1330.38762188,0.00023357,30]
[401998626,1768453845343,-506.39573377,0.00023372,40]
[401998628,1768453845352,-358.47727814,0.00023372,40]
[401998629,1768453845361,-900.0,0.00023396,2]
[401998632,1768453845371,-328.20661034,0.00023396,32]
[401998634,1768453845380,-1330.38762188,0.00023396,32]
[401998636,1768453845390,-250.0,0.000234,10]
[401998638,1768453845401,-2200.0,0.00023403,2]
[401998640,1768453845412,-500.0,0.00023403,2]
[401998641,1768453845422,-900.0,0.00023411,2]
[401998643,1768453845431,-1330.38762188,0.00023436,35]
[401998645,1768453845440,-530.57738532,0.0002345,11]
[401998647,1768453845449,-523.03503726,0.00023466,2]
[401998649,1768453845459,-500.0,0.00023471,2]
[401998651,1768453845467,-900.0,0.00023471,2]
[401998653,1768453845476,-1330.38762188,0.00023475,37]
[401998655,1768453845486,-381.9,0.00023482,2]
[401998657,1768453845496,-2200.0,0.00023486,2]
[401998659,1768453845506,-309.165995,0.00023495,2]
[401998661,1768453845518,-309.165995,0.00023495,2]
[401998663,1768453845527,-309.165995,0.00023495,2]
[401998665,1768453845536,-309.165995,0.00023495,2]
[401998667,1768453845545,-151.0,0.00023495,2]
[401998669,1768453845556,-500.0,0.00023498,2]
[401998671,1768453845566,-250.0,0.000235,10]
[401998673,1768453845575,-500.0,0.00023502,2]
[401998675,1768453845586,-506.39573377,0.00023509,48]
[401998677,1768453845595,-358.47727814,0.00023509,48]
[401998680,1768453845605,-1330.38762188,0.00023514,39]
[401998682,1768453845614,-1701.0,0.00023531,2]
[401998684,1768453845623,-328.20661034,0.00023534,40]
[401998686,1768453845632,-900.0,0.0002354,2]
[401998688,1768453845641,-800.0,0.00023553,2]
[401998690,1768453845650,-1330.38762188,0.00023553,41]
[401998692,1768453845660,-600.0,0.00023562,2]
[401998694,1768453845669,-900.0,0.0002357,2]
[401998696,1768453845679,-1330.38762188,0.00023593,43]
[401998698,1768453845688,-151.0,0.00023593,2]
[401998700,1768453845698,-2398.91,0.000236,14]
[401998703,1768453845709,-250.0,0.000236,10]
[401998705,1768453845718,-800.0,0.00023611,2]
[401998707,1768453845727,-2200.0,0.00023627,2]
[401998709,1768453845736,-1701.0,0.00023629,2]
[401998710,1768453845746,-1330.38762188,0.00023632,46]
[401998712,1768453845755,-2200.0,0.00023634,2]
[401998714,1768453845765,-174.0,0.00023644,10]
[401998716,1768453845774,-506.39573377,0.00023645,56]
[401998719,1768453845784,-358.47727814,0.00023645,56]
[401998721,1768453845794,-2200.0,0.00023662,2]
[401998723,1768453845803,-499.3,0.00023667,2]
[401998724,1768453845812,-328.20661034,0.00023671,48]
[401998726,1768453845821,-1330.38762188,0.00023671,48]
[401998729,1768453845830,-1701.0,0.00023673,2]
[401998730,1768453845839,-500.0,0.00023675,2]
[401998733,1768453845848,-900.0,0.00023684,2]